bitfinex/quotes_BTCUSD_20251219
["timestamp","ask_amount","ask_price","bid_price","bid_amount"]
[1766185840110,0.12583,88383.0,88376.0,0.01131528]
[1766185840314,0.12583,88383.0,88375.0,0.01131541]
[1766185840525,0.12583,88383.0,88376.0,0.01131528]
[1766185840724,0.20274,88383.0,88374.0,0.01131554]
[1766185840928,0.000549,88376.0,88374.0,0.01131554]
[1766185841153,0.12015,88382.0,88375.0,0.01131541]
[1766185841946,0.12015,88382.0,88376.0,0.01131528]
[1766185842991,0.12015,88382.0,88377.0,0.01131516]
[1766185844082,0.12015,88382.0,88376.0,0.01131528]
[1766185844260,0.12015,88382.0,88377.0,0.01131516]
[1766185844662,0.12015,88382.0,88379.0,0.0113149]
[1766185845066,0.11501045,88382.0,88379.0,0.0113149]
[1766185845467,0.20274,88383.0,88380.0,0.01131477]
[1766185845682,0.00568,88383.0,88378.0,0.01131503]
[1766185845842,0.00568,88383.0,88379.0,0.0113149]
[1766185846049,0.00568,88383.0,88378.0,0.01131503]
[1766185846524,0.00568,88383.0,88379.0,0.0113149]
[1766185846880,0.00568,88383.0,88378.0,0.01131503]
[1766185847102,0.00568,88383.0,88377.0,0.01131516]
[1766185847313,0.00568,88383.0,88376.0,0.06789142]
[1766185847314,0.00568,88383.0,88376.0,0.01131528]
[1766185847552,0.00568,88383.0,88377.0,0.01131516]
[1766185848616,0.00568,88383.0,88376.0,0.01131528]
[1766185849441,0.00568,88383.0,88375.0,0.01131541]
[1766185849850,0.12583,88383.0,88376.0,0.01131528]
[1766185850479,0.12583,88383.0,88375.0,0.01131541]
[1766185851507,0.12583,88383.0,88376.0,0.01131528]
[1766185851642,0.12583,88383.0,88375.0,0.01131541]
[1766185851845,0.12583,88383.0,88376.0,0.01131528]
[1766185852426,0.12583,88383.0,88374.0,0.01131554]
[1766185852641,0.12583,88383.0,88376.0,0.01131528]
[1766185852847,0.12583,88383.0,88378.0,0.01131503]
[1766185853251,0.12583,88383.0,88379.0,0.0113149]
[1766185853609,0.12583,88383.0,88378.0,0.01131503]
[1766185853893,0.12583,88383.0,88377.0,0.01131516]
[1766185854447,0.00568,88383.0,88378.0,0.01131503]
[1766185855089,0.00568,88383.0,88377.0,0.01131516]
[1766185855813,0.00568,88383.0,88378.0,0.01131503]
[1766185856318,0.00568,88383.0,88377.0,0.01131516]
[1766185856858,0.00568,88383.0,88375.0,0.01131541]
[1766185857213,0.00568,88383.0,88376.0,0.01131528]
[1766185857342,0.00568,88383.0,88377.0,0.01131516]
[1766185858085,0.00568,88383.0,88378.0,0.01131503]
[1766185858548,0.00568,88383.0,88377.0,0.01131516]
[1766185859140,0.00568,88383.0,88378.0,0.01131503]
[1766185859746,0.00568,88383.0,88376.0,0.01131528]
[1766185859967,0.00568,88383.0,88375.0,0.01131541]
[1766185860375,0.000549,88375.0,88374.0,0.14284]
[1766185860941,0.00568,88383.0,88374.0,0.14284]
[1766185861162,0.12583,88383.0,88374.0,0.14284]
[1766185861606,0.12583,88383.0,88374.0,0.142291]
[1766185861797,0.00568,88383.0,88374.0,0.142291]
[1766185862221,0.19706,88381.0,88373.0,0.00568]
[1766185862429,0.19706,88380.0,88373.0,0.00568]
[1766185862602,0.00568,88383.0,88373.0,0.00568]
[1766185862807,0.12015,88382.0,88373.0,0.00568]
[1766185863010,0.12015,88381.0,88373.0,0.00568]
[1766185863206,0.31721,88381.0,88373.0,0.00568]
[1766185863414,0.12015,88380.0,88373.0,0.00568]
[1766185864881,0.12015,88380.0,88373.0,0.01699567]
[1766185865199,0.12015,88380.0,88375.0,0.01131541]
[1766185865405,0.12015,88380.0,88376.0,0.01131528]
[1766185865559,0.12015,88380.0,88375.0,0.01131541]
[1766185868828,0.12015,88380.0,88376.0,0.01131528]
[1766185869132,0.12015,88380.0,88375.0,0.01131541]
[1766185869648,0.12015,88380.0,88376.0,0.01131528]
[1766185869847,0.12015,88380.0,88375.0,0.01131541]
[1766185870055,0.12247,88378.0,88373.0,0.01699567]
[1766185870667,0.12247,88378.0,88375.0,0.01131541]
[1766185871056,0.12247,88378.0,88374.0,0.01131554]
[1766185871285,0.12247,88378.0,88375.0,0.01131541]
[1766185871449,0.20158,88379.0,88375.0,0.01131541]
[1766185871650,0.20158,88379.0,88376.0,0.01131528]
[1766185872375,0.20158,88379.0,88375.0,0.01131541]
[1766185873822,0.12247,88382.0,88375.0,0.01131541]
[1766185873995,0.12247,88382.0,88376.0,0.01131528]
[1766185874400,0.12247,88382.0,88375.0,0.01131541]
[1766185874609,0.12247,88382.0,88376.0,0.01131528]
[1766185875530,0.00568,88383.0,88377.0,0.06789096]
[1766185875737,0.01131592,88392.0,88382.0,0.14768]
[1766185875940,0.12247,88386.0,88379.0,0.00568]
[1766185876141,0.12247,88385.0,88379.0,0.00568]
[1766185876314,0.12247,88384.0,88379.0,0.00568]
[1766185876518,0.12247,88383.0,88379.0,0.00568]
[1766185877287,0.12247,88383.0,88379.0,0.004581]
[1766185877500,0.12247,88381.0,88375.0,0.00568]
[1766185877721,0.12247,88381.0,88376.0,0.00568]
[1766185879281,0.12247,88381.0,88356.0,0.1487]
[1766185879282,0.20158,88377.0,88372.0,0.00568]
[1766185879488,0.12247,88376.0,88372.0,0.00568]
[1766185879911,0.12247,88376.0,88372.0,0.0169958]
[1766185880127,0.12247,88376.0,88372.0,0.00568]
[1766185886209,0.00568,88385.0,88376.0,0.14053]
[1766185886374,0.00568,88385.0,88378.0,0.01131503]
[1766185886583,0.00568,88385.0,88377.0,0.01131516]
[1766185887010,0.00568,88385.0,88378.0,0.01131503]
[1766185887539,0.00568,88385.0,88379.0,0.0113149]
[1766185887681,0.00568,88385.0,88378.0,0.01131503]
[1766185887891,0.00568,88385.0,88379.0,0.0113149]
[1766185888085,0.005131,88385.0,88379.0,0.0113149]
[1766185888583,0.005131,88385.0,88379.0,0.1500449]
[1766185888764,1e-06,88385.0,88379.0,0.1500449]
[1766185889379,1e-06,88385.0,88381.0,0.14433464]
[1766185889778,1e-06,88385.0,88382.0,0.01131452]
[1766185889987,1e-06,88385.0,88381.0,0.13302]
[1766185893277,0.05846786,88394.0,88388.0,0.01131375]
[1766185893278,0.00568,88392.0,88388.0,0.01131375]
[1766185893819,0.0339982,88394.0,88388.0,0.01131375]
[1766185893820,0.00568,88394.0,88388.0,0.01131375]
[1766185894058,0.13335,88394.0,88385.0,0.01131413]
[1766185894287,0.13903,88394.0,88385.0,0.01131413]
[1766185894457,0.13199,88393.0,88383.0,0.01131439]
[1766185894666,0.13199,88393.0,88380.0,0.89769782]
[1766185894667,0.13199,88393.0,88382.0,0.01131452]
[1766185894868,0.13199,88393.0,88380.0,0.88638305]
[1766185895071,0.13199,88392.0,88378.0,0.14666503]
[1766185895279,0.17638,88392.0,88378.0,0.14666503]
[1766185895484,0.13199,88391.0,88378.0,0.13535]
[1766185896228,0.13199,88391.0,88378.0,0.14666503]
[1766185896425,0.13199,88391.0,88380.0,0.01131477]
[1766185896690,0.13199,88391.0,88381.0,0.01131464]
[1766185896916,0.17638,88389.0,88378.0,0.00568]
[1766185897038,0.13199,88388.0,88378.0,0.00568]
[1766185897236,0.17638,88387.0,88378.0,0.00568]
[1766185897440,0.13199,88383.0,88378.0,0.00568]
[1766185897668,0.13199,88383.0,88375.0,0.00568]
[1766185898084,0.13199,88383.0,88375.0,0.01699541]
[1766185898287,0.13199,88383.0,88376.0,0.01131528]
[1766185898490,0.17638,88384.0,88376.0,0.01131528]
[1766185898892,0.17638,88384.0,88375.0,0.01699541]
[1766185899329,0.17638,88384.0,88376.0,0.01131528]
[1766185899536,0.17638,88384.0,88375.0,0.01699541]
[1766185901234,0.17638,88384.0,88375.0,0.00568]
[1766185901980,0.13767,88387.0,88376.0,0.01131528]
[1766185902183,0.13767,88387.0,88377.0,0.01131516]
[1766185902878,0.31405,88387.0,88377.0,0.01131516]
[1766185903237,0.13199,88386.0,88376.0,0.01131528]
[1766185903560,0.13199,88386.0,88377.0,0.01131516]
[1766185904991,0.13199,88386.0,88378.0,0.01131503]
[1766185905442,0.13199,88386.0,88377.0,0.01131516]
[1766185906445,0.13199,88386.0,88376.0,0.01131528]
[1766185907389,0.13199,88386.0,88377.0,0.0565758]
[1766185907535,0.13199,88386.0,88378.0,0.01131503]
[1766185908178,0.13199,88386.0,88379.0,0.0113149]
[1766185908551,0.13199,88386.0,88377.0,0.13449516]
[1766185908752,0.13199,88386.0,88378.0,0.01131503]
[1766185909068,0.2445,88428.0,88376.0,0.01131528]
[1766185909069,0.13199,88407.0,88393.0,0.12272]
[1766185909261,0.17638,88405.0,88395.0,0.01131285]
[1766185909454,0.31405,88404.0,88397.0,0.0113126]
[1766185909650,0.31405,88404.0,88399.0,0.01131234]
[1766185909651,0.00568,88404.0,88399.0,0.01131234]
[1766185909857,0.00568,88404.0,88398.0,0.01131247]
[1766185910063,0.00568,88404.0,88397.0,0.1335726]
[1766185910263,0.00568,88404.0,88398.0,0.01131247]
[1766185910949,0.00568,88404.0,88397.0,0.1335726]
[1766185911161,0.00568,88404.0,88398.0,0.01131247]
[1766185911461,0.00568,88404.0,88399.0,0.01131234]
[1766185911804,0.00568,88404.0,88397.0,0.1335726]
[1766185912028,0.00568,88404.0,88398.0,0.01131247]
[1766185912209,0.00513,88404.0,88401.0,0.01131208]
[1766185913977,0.00513,88404.0,88398.0,0.13268247]
[1766185914180,0.00513,88404.0,88399.0,0.01131234]
[1766185914434,0.00513,88404.0,88400.0,0.01131221]
[1766185915056,0.00513,88404.0,88401.0,0.01131208]
[1766185915266,0.00513,88404.0,88400.0,0.01131221]
[1766185916397,0.000549,88400.0,88393.0,0.01131311]
[1766185916602,0.000549,88400.0,88397.0,0.0113126]
[1766185916814,0.13712,88404.0,88396.0,0.01131272]
[1766185917037,0.00513,88404.0,88397.0,0.0113126]
[1766185917242,0.00513,88404.0,88401.0,0.01131208]
[1766185917451,0.00513,88404.0,88399.0,0.01131234]
[1766185917662,0.00513,88404.0,88400.0,0.01131221]
[1766185918269,0.00513,88404.0,88399.0,0.01131234]
[1766185918627,0.00513,88404.0,88398.0,0.01131247]
[1766185919031,0.00568,88408.0,88398.0,0.01131247]
[1766185919238,0.00568,88408.0,88399.0,0.12970234]
[1766185920218,0.00568,88408.0,88400.0,0.01131221]
[1766185920424,0.00568,88408.0,88399.0,0.11839]
[1766185920619,0.000549,88400.0,88399.0,0.11839]
[1766185920825,0.13767,88408.0,88399.0,0.11839]
[1766185921062,0.00055,88399.0,88393.0,0.11759]
[1766185921605,0.13199,88402.0,88393.0,0.11759]
[1766185922558,0.01131093,88410.0,88391.0,0.01131336]
[1766185922559,0.000549,88393.0,88391.0,0.00568]
[1766185922769,0.000549,88393.0,88387.0,0.01131388]
[1766185922770,0.13199,88392.0,88389.0,0.06788155]
[1766185922988,0.17638,88394.0,88390.0,0.01131349]
[1766185923206,0.30837,88394.0,88391.0,0.01131336]
[1766185923431,0.30837,88394.0,88389.0,0.07356155]
[1766185923432,0.00568,88403.0,88397.0,0.12248]
[1766185923833,0.00568,88403.0,88396.0,0.01131272]
[1766185925150,0.00568,88403.0,88398.0,0.01131247]
[1766185925365,0.00568,88403.0,88396.0,0.01131272]
[1766185925985,0.00568,88403.0,88397.0,0.0113126]
[1766185926344,0.00568,88403.0,88398.0,0.01131247]
[1766185927182,0.00568,88403.0,88397.0,0.0113126]
[1766185928450,0.00568,88403.0,88395.0,0.01131285]
[1766185928835,0.01131029,88415.0,88395.0,0.01131285]
[1766185928836,0.1306,88437.0,88418.0,0.11991]
[1766185929009,0.1306,88437.0,88420.0,0.94293097]
[1766185929010,0.18304,88433.0,88420.0,0.94293097]
[1766185929266,0.18304,88433.0,88422.0,0.0113094]
[1766185929267,0.12492,88432.0,88422.0,0.0113094]
[1766185929484,0.12492,88432.0,88418.0,0.00568]
[1766185929485,0.00055,88422.0,88414.0,0.06223201]
[1766185929744,0.89769015,88440.0,88417.0,0.0135805]
[1766185929745,0.12492,88427.0,88417.0,0.0135805]
[1766185929975,0.12492,88427.0,88416.0,0.23808065]
[1766185929976,0.12492,88427.0,88409.0,0.03398511]
[1766185929977,0.05246,88416.0,88409.0,0.03398511]
[1766185930171,0.01130978,88419.0,88388.0,0.18153]
[1766185930172,0.12492,88406.0,88390.0,0.89769654]
[1766185930373,0.12492,88400.0,88390.0,0.88638305]
[1766185931032,0.12492,88400.0,88391.0,0.01131336]
[1766185931247,0.12492,88400.0,88392.0,0.01131324]
[1766185931666,0.12492,88400.0,88393.0,0.01131311]
[1766185931876,0.12492,88400.0,88392.0,0.01131324]
[1766185932254,0.12492,88400.0,88393.0,0.01131311]
[1766185932506,0.12492,88400.0,88394.0,0.01131298]
[1766185932625,0.12492,88400.0,88395.0,0.01131285]
[1766185932831,0.12492,88400.0,88396.0,0.01131272]
[1766185933264,0.12492,88400.0,88395.0,0.01131285]
[1766185933265,0.12492,88400.0,88394.0,0.01131298]
[1766185933465,0.00568,88405.0,88393.0,0.01131311]
[1766185933669,0.00568,88405.0,88388.0,0.38306195]
[1766185933670,0.17857,88403.0,88390.0,0.18153]
[1766185933875,0.12492,88402.0,88391.0,0.01131336]
[1766185934287,0.05365,88403.0,88391.0,0.01131336]
[1766185934288,0.05365,88403.0,88391.0,0.12797]
[1766185934491,0.05365,88403.0,88392.0,0.01131324]
[1766185934871,0.05365,88403.0,88393.0,0.01131311]
[1766185935711,0.00568,88405.0,88397.0,0.18153]
[1766185935942,0.05423,88410.0,88399.0,0.18153]
[1766185935943,0.00568,88404.0,88399.0,0.18153]
[1766185937554,0.005131,88404.0,88399.0,0.19284234]
[1766185937772,1e-06,88404.0,88399.0,0.19284234]
[1766185937988,1e-06,88404.0,88400.0,0.19284221]
[1766185938433,1e-06,88404.0,88400.0,0.18153]
[1766185938669,1e-06,88404.0,88400.0,0.180981]
[1766185939519,0.12492,88409.0,88400.0,0.180981]
[1766185939762,0.00568,88408.0,88400.0,0.180981]
[1766185940203,0.00568,88408.0,88400.0,0.19229321]
[1766185940445,0.05654649,88423.0,88399.0,0.02489284]
[1766185940446,0.17099254,88418.0,88406.0,0.01131144]
[1766185940691,0.00568,88417.0,88410.0,0.17303]
[1766185941980,0.06187,88415.0,88396.0,0.17303]
[1766185942350,0.00568,88417.0,88396.0,0.17303]
[1766185942351,0.137,88408.0,88400.0,0.01131221]
[1766185942554,0.137,88408.0,88401.0,0.01131208]
[1766185942692,0.137,88408.0,88400.0,0.01131221]
[1766185944079,0.137,88408.0,88398.0,0.01131247]
[1766185944631,0.137,88408.0,88399.0,0.01131234]
[1766185945229,0.137,88408.0,88400.0,0.01131221]
[1766185945531,0.137,88408.0,88395.0,0.03398784]
[1766185945532,0.00055,88400.0,88388.0,0.17303]
[1766185945733,0.00055,88400.0,88392.0,0.01699324]
[1766185945934,0.06292,88407.0,88394.0,0.02262545]
[1766185946159,0.137,88406.0,88396.0,0.01131272]
[1766185946956,0.137,88406.0,88397.0,0.0113126]
[1766185947143,0.137,88406.0,88396.0,0.01131272]
[1766185947341,0.137,88406.0,88397.0,0.0113126]
[1766185948384,0.137,88403.0,88396.0,0.01131272]
[1766185949147,0.00568,88410.0,88397.0,0.0113126]
[1766185949377,0.00568,88410.0,88403.0,0.173579]
[1766185949601,0.00568,88410.0,88403.0,0.17303]
[1766185950173,0.00568,88410.0,88403.0,0.13474]
[1766185950383,0.00568,88410.0,88402.0,0.17303]
[1766185954245,0.12759,88408.0,88395.0,0.18542]
[1766185954496,0.00055,88402.0,88395.0,0.19673285]
[1766185954724,0.12759,88408.0,88397.0,0.0113126]
[1766185955197,0.12759,88408.0,88398.0,0.01131247]
[1766185955850,0.12759,88408.0,88396.0,0.17974]
[1766185956049,0.12759,88408.0,88396.0,0.19105272]
[1766185956262,0.12759,88408.0,88398.0,0.01131247]
[1766185956838,0.12759,88408.0,88399.0,0.01131234]
[1766185957020,0.12759,88408.0,88398.0,0.01131247]
[1766185957216,0.12759,88408.0,88399.0,0.01131234]
[1766185957442,0.12759,88408.0,88398.0,0.01131247]
[1766185958053,0.06512,88409.0,88398.0,0.01131247]
[1766185958312,0.06512,88409.0,88398.0,0.19105247]
[1766185958739,0.00568,88410.0,88401.0,0.12522]
[1766185959092,0.00568,88410.0,88400.0,0.17974]
[1766185959711,0.13327,88410.0,88400.0,0.17974]
[1766185962629,0.00568,88410.0,88401.0,0.01131208]
[1766185962835,0.00568,88410.0,88400.0,0.12522]
[1766185963348,0.00568,88410.0,88399.0,0.17974]
[1766185963753,0.00568,88410.0,88399.0,0.30496]
[1766185964955,0.13327,88410.0,88399.0,0.17974]
[1766185966240,0.00568,88410.0,88399.0,0.30496]
[1766185967975,0.00568,88410.0,88399.0,0.31627234]
[1766185968654,0.00568,88410.0,88399.0,0.30496]
[1766185969062,0.00568,88410.0,88400.0,0.01131221]
[1766185969230,0.00568,88410.0,88401.0,0.01131208]
[1766185969612,0.00568,88410.0,88402.0,0.01131196]
[1766185970578,0.00568,88410.0,88401.0,0.01131208]
[1766185970781,0.00568,88410.0,88402.0,0.01131196]
[1766185970976,0.00568,88410.0,88403.0,0.01131183]
[1766185971523,0.12759,88411.0,88406.0,0.19105144]
[1766185971524,0.00568,88411.0,88406.0,0.19105144]
[1766185971857,0.00568,88411.0,88406.0,0.17974]
[1766185976622,0.00568,88411.0,88407.0,0.01131132]
[1766185976774,0.00568,88411.0,88406.0,0.17974]
[1766185978456,0.95489689,88420.0,88407.0,0.17974]
[1766185978457,0.00568,88414.0,88407.0,0.17974]
[1766185978663,0.00568,88414.0,88407.0,0.30496]
[1766185979069,0.00568,88414.0,88407.0,0.17974]
[1766185979297,0.12759,88418.0,88407.0,0.17974]
[1766185979467,0.13327,88418.0,88407.0,0.17974]
[1766185981323,0.12759,88417.0,88407.0,0.17974]
[1766185981943,0.12759,88416.0,88403.0,0.13653183]
[1766185982142,0.12759,88416.0,88403.0,0.12522]
[1766185982904,0.12759,88416.0,88403.0,0.13653183]
[1766185983532,0.12759,88416.0,88404.0,0.0113117]
[1766185984012,0.12759,88416.0,88403.0,0.12522]
[1766185984313,0.00568,88418.0,88394.0,0.06787697]
[1766185984314,0.08266,88415.0,88394.0,0.06787697]
[1766185984540,0.13815,88409.0,88398.0,0.01131247]
[1766185984747,0.00568,88410.0,88398.0,0.13074]
[1766185984929,0.00568,88410.0,88399.0,0.18945234]
[1766185985129,0.00568,88410.0,88400.0,0.01131221]
[1766185985700,0.00568,88410.0,88401.0,0.01041285]
[1766185986308,0.00568,88410.0,88401.0,0.00921401]
[1766185986529,0.00568,88410.0,88400.0,0.01131221]
[1766185987169,0.00568,88410.0,88401.0,0.01071266]
[1766185987307,0.00568,88410.0,88402.0,0.01131196]
[1766185987879,0.00568,88410.0,88401.0,0.01071266]
[1766185988236,0.00568,88410.0,88402.0,0.01131196]
[1766185988443,0.00568,88410.0,88402.0,0.01011344]
[1766185988978,0.00568,88410.0,88401.0,0.01071266]
[1766185989325,0.00568,88410.0,88402.0,0.01131196]
[1766185989532,0.00568,88410.0,88401.0,0.01071266]
[1766185990154,0.00568,88410.0,88402.0,0.01131196]
[1766185990358,0.00568,88410.0,88401.0,0.01071266]
[1766185990941,0.00568,88410.0,88402.0,0.01131196]
[1766185991581,0.00568,88410.0,88401.0,0.01071266]
[1766185992420,0.00568,88410.0,88399.0,0.18945234]
[1766185992620,0.00568,88410.0,88400.0,0.01131221]
[1766185992971,0.00568,88410.0,88401.0,0.01131208]
[1766185993164,0.00568,88410.0,88401.0,0.01101252]
[1766185994119,0.00568,88410.0,88401.0,0.01131208]
[1766185994321,0.00568,88410.0,88400.0,0.1890513]
[1766185994533,0.00568,88410.0,88401.0,0.01131208]
[1766185994676,0.00568,88410.0,88400.0,0.1890513]
[1766185994876,0.00568,88410.0,88401.0,0.01131208]
[1766185995096,0.00568,88410.0,88400.0,0.17814]
[1766185995502,0.00568,88410.0,88401.0,0.17814]
[1766185995903,0.00568,88410.0,88401.0,0.17784055]
[1766185998023,0.00568,88410.0,88401.0,0.18915263]
[1766185998410,0.00568,88410.0,88402.0,0.01131196]
[1766185999236,0.13571,88410.0,88402.0,0.01131196]
[1766185999434,0.13571,88410.0,88401.0,0.18915263]
[1766185999571,0.13571,88410.0,88402.0,0.01131196]
[1766185999998,0.13571,88410.0,88401.0,0.01131208]
[1766186002451,0.09043,88422.0,88411.0,0.17926]
[1766186002658,0.00568,88423.0,88415.0,0.17926]
[1766186002861,0.00568,88423.0,88418.0,0.01130991]
[1766186003071,0.00568,88423.0,88419.0,0.17926]
[1766186003501,0.00568,88423.0,88415.0,0.01131029]
[1766186004311,0.00568,88423.0,88416.0,0.01131017]
[1766186004540,0.00568,88423.0,88415.0,0.01131029]
[1766186004953,0.00568,88423.0,88416.0,0.01131017]
[1766186005574,0.00568,88423.0,88370.0,0.00099999]
[1766186005743,0.13003,88419.0,88404.0,0.0113117]
[1766186005945,0.09087,88420.0,88401.0,0.06787217]
[1766186005946,0.13003,88417.0,88401.0,0.01131208]
[1766186006205,0.06786212,88415.0,88398.0,0.17926]
[1766186006412,0.13003,88416.0,88398.0,0.17926]
[1766186006562,0.13003,88413.0,88398.0,0.17926]
[1766186006768,0.8859024,88410.0,88398.0,0.17926]
[1766186007033,0.13003,88409.0,88398.0,0.17926]
[1766186007194,0.13003,88409.0,88398.0,0.19057247]
[1766186008214,0.13003,88404.0,88388.0,0.1336]
[1766186008556,0.8859024,88410.0,88388.0,0.1336]
[1766186008557,0.0339925,88417.0,88406.0,0.07755]
[1766186008746,0.0339925,88417.0,88404.0,0.001099]
[1766186008747,0.01698953,88421.0,88404.0,0.001099]
[1766186008953,0.01698953,88421.0,88401.0,0.01131208]
[1766186008954,0.89721205,88420.0,88401.0,0.01131208]
[1766186009161,0.31516,88419.0,88403.0,0.01131183]
[1766186009332,0.8859024,88420.0,88403.0,0.01131183]
[1766186009502,0.01130991,88418.0,88401.0,0.01131208]
[1766186009856,0.31516,88417.0,88401.0,0.01131208]
[1766186010198,0.01130978,88419.0,88400.0,0.8859024]
[1766186010372,0.18513,88414.0,88400.0,0.8859024]
[1766186010670,0.13003,88411.0,88399.0,0.08886234]
[1766186010882,0.00568,88413.0,88396.0,0.01131272]
[1766186010883,0.18513,88408.0,88397.0,0.0113126]
[1766186011055,0.13003,88402.0,88386.0,0.0792]
[1766186011265,0.8859024,88410.0,88389.0,0.01131362]
[1766186011266,0.31516,88400.0,88389.0,0.01131362]
[1766186011464,0.31516,88400.0,88387.0,0.06224903]
[1766186011649,0.31516,88400.0,88387.0,0.14226903]
[1766186012057,0.31516,88400.0,88391.0,0.01131336]
[1766186012375,0.004581,88399.0,88394.0,0.08002]
[1766186012576,0.13003,88407.0,88394.0,0.09133298]
[1766186012747,0.00568,88403.0,88395.0,0.01131285]
[1766186012936,0.13003,88407.0,88395.0,0.01131285]
[1766186013370,0.00568,88406.0,88396.0,0.01131272]
[1766186014616,0.00568,88406.0,88395.0,0.01131285]
[1766186014766,0.00568,88405.0,88396.0,0.01131272]
[1766186014964,0.13003,88407.0,88396.0,0.08426272]
[1766186015168,0.13003,88407.0,88398.0,0.01131247]
[1766186015169,0.00568,88406.0,88398.0,0.01131247]
[1766186015373,0.00568,88405.0,88398.0,0.01131247]
[1766186015573,0.13003,88407.0,88398.0,0.01131247]
[1766186015774,0.00568,88406.0,88398.0,0.01131247]
[1766186015989,0.13003,88407.0,88398.0,0.01131247]
[1766186016194,0.13003,88407.0,88399.0,0.01131234]
[1766186016519,0.00568,88406.0,88399.0,0.01131234]
[1766186016672,0.18513,88408.0,88399.0,0.01131234]
[1766186016873,0.00568,88407.0,88399.0,0.01131234]
[1766186017402,0.00568,88406.0,88399.0,0.01131234]
[1766186017771,0.18513,88408.0,88399.0,0.01131234]
[1766186018156,0.18513,88408.0,88400.0,0.01131221]
[1766186018360,0.00568,88407.0,88398.0,0.01131247]
[1766186018696,0.18513,88408.0,88398.0,0.01131247]
[1766186018912,0.18513,88408.0,88397.0,0.973225]
[1766186019109,0.00568,88407.0,88397.0,0.973225]
[1766186019294,0.00568,88407.0,88398.0,0.01131247]
[1766186019885,0.00568,88407.0,88399.0,0.01131234]
[1766186020086,0.00568,88407.0,88400.0,0.01131221]
[1766186021494,0.00568,88407.0,88399.0,0.01131234]
[1766186021699,0.00568,88407.0,88400.0,0.01131221]
[1766186021905,0.001099,88400.0,88397.0,0.8859024]
[1766186022192,0.14818,88402.0,88391.0,0.01131336]
[1766186022333,0.14818,88402.0,88392.0,0.01699324]
[1766186022852,0.14818,88402.0,88393.0,0.01131311]
[1766186023052,0.14818,88402.0,88392.0,0.01699324]
[1766186023255,0.14818,88402.0,88393.0,0.01131311]
[1766186024004,0.14818,88402.0,88392.0,0.01699324]
[1766186024209,0.14818,88402.0,88392.0,0.00568]
[1766186027232,0.14818,88402.0,88392.0,0.01699324]
[1766186027466,0.14818,88402.0,88393.0,0.01131311]
[1766186027672,0.32711,88402.0,88392.0,0.01699324]
[1766186027849,0.17893,88402.0,88392.0,0.01699324]
[1766186028109,0.17893,88402.0,88393.0,0.01131311]
[1766186029928,0.17893,88402.0,88394.0,0.01131298]
[1766186030145,0.17893,88402.0,88393.0,0.01131311]
[1766186030679,0.17893,88402.0,88394.0,0.01131298]
[1766186031089,0.17893,88402.0,88393.0,0.01131311]
[1766186032980,0.000549,88393.0,88382.0,0.08568]
[1766186033200,0.000549,88393.0,88383.0,0.00568]
[1766186033420,0.00055,88383.0,88376.0,0.00568]
[1766186034048,0.32711,88386.0,88376.0,0.00568]
[1766186034469,0.32711,88386.0,88376.0,0.01699528]
[1766186034674,0.32711,88386.0,88377.0,0.01131516]
[1766186034885,0.32711,88386.0,88376.0,0.01699528]
[1766186035094,0.15386,88388.0,88377.0,0.08694]
[1766186035307,0.15386,88388.0,88377.0,0.09825516]
[1766186035525,0.15386,88388.0,88377.0,0.08694]
[1766186035698,0.15386,88388.0,88378.0,0.89721743]
[1766186036141,0.15386,88388.0,88378.0,0.8859024]
[1766186036553,0.00568,88388.0,88380.0,0.01131477]
[1766186036969,0.00568,88388.0,88382.0,0.01131452]
[1766186037810,0.17893,88390.0,88383.0,0.01131439]
[1766186038012,0.14818,88393.0,88383.0,0.01131439]
[1766186038013,0.00568,88388.0,88383.0,0.01131439]
[1766186038663,0.00568,88388.0,88384.0,0.01131426]
[1766186038802,0.00568,88389.0,88384.0,0.01131426]
[1766186039429,0.14818,88393.0,88384.0,0.01131426]
[1766186039629,0.14818,88393.0,88385.0,0.01131413]
[1766186039834,0.00568,88392.0,88384.0,0.01131426]
[1766186040028,0.14818,88393.0,88384.0,0.01131426]
[1766186040356,0.14818,88393.0,88383.0,0.01131439]
[1766186040723,0.00568,88392.0,88383.0,0.01131439]
[1766186041624,0.14818,88393.0,88383.0,0.01131439]
[1766186041855,0.00568,88391.0,88383.0,0.01131439]
[1766186042132,0.14818,88393.0,88383.0,0.01131439]
[1766186042335,0.00568,88390.0,88382.0,0.01131452]
[1766186042537,0.14818,88393.0,88382.0,0.01131452]
[1766186042745,0.00568,88389.0,88383.0,0.01131439]
[1766186042944,0.00568,88389.0,88382.0,0.01131452]
[1766186043232,0.00568,88389.0,88383.0,0.01131439]
[1766186043532,0.14818,88396.0,88382.0,0.10356452]
[1766186043706,0.14818,88396.0,88378.0,1.11220169]
[1766186043707,0.04532,88402.0,88390.0,0.01131349]
[1766186043913,0.15386,88401.0,88391.0,0.08657]
[1766186044115,0.00568,88401.0,88393.0,0.1001505]
[1766186044319,0.00568,88401.0,88393.0,0.11146361]
[1766186044530,0.00568,88401.0,88393.0,0.1001505]
[1766186045029,0.00568,88401.0,88393.0,0.11146361]
[1766186045416,0.00568,88401.0,88393.0,0.1001505]
[1766186045650,0.00568,88401.0,88393.0,0.08657]
[1766186047782,0.00568,88401.0,88393.0,0.09788311]
[1766186048081,0.14989,88401.0,88391.0,0.01131336]
[1766186048639,0.2011,88401.0,88391.0,0.01131336]
[1766186048857,0.14421,88400.0,88391.0,0.01131336]
[1766186049605,0.14421,88400.0,88392.0,0.01131324]
[1766186049776,0.14421,88400.0,88391.0,0.01131336]
[1766186049973,0.14421,88400.0,88392.0,0.01131324]
[1766186051072,0.14421,88400.0,88393.0,0.01131311]
[1766186051985,0.14421,88400.0,88392.0,0.01131324]
[1766186052407,0.14421,88400.0,88393.0,0.01131311]
[1766186053250,0.14421,88400.0,88392.0,0.01131324]
[1766186053654,0.14421,88400.0,88391.0,0.01131336]
[1766186053785,0.14421,88400.0,88390.0,0.89721589]
[1766186053988,0.14421,88400.0,88391.0,0.01131336]
[1766186054658,0.14421,88400.0,88392.0,0.01131324]
[1766186054863,0.14421,88400.0,88391.0,0.01131336]